bitfinex-derivatives/quotes_BNBF0:USTF0_20250406
["timestamp","ask_amount","ask_price","bid_price","bid_amount"]
[1743905901116,0.33795772,591.79,590.8,0.29270193]
[1743905901816,0.33795772,591.79,590.81,0.29270193]
[1743905902011,0.33795772,591.79,590.7,0.29270193]
[1743905902212,0.29427433,591.78,590.71,0.29270193]
[1743905902415,0.33796914,591.77,590.62,0.29270193]
[1743905902623,0.98796914,591.77,590.63,0.29270358]
[1743905902819,0.98796914,591.77,590.64,0.29270358]
[1743905903018,0.98796914,591.77,590.62,0.29270358]
[1743905903219,0.98796914,591.77,590.63,0.29270358]
[1743905903424,0.98796914,591.77,590.64,0.63131931]
[1743905903724,0.98796914,591.77,590.65,0.63131358]
[1743905903922,0.98796914,591.77,590.66,0.29270358]
[1743905904120,0.98796914,591.77,590.65,0.33861]
[1743905904318,0.98796914,591.77,590.67,0.29268303]
[1743905904520,0.98796914,591.77,590.68,0.29268303]
[1743905905119,0.98796914,591.77,590.66,0.29268303]
[1743905905318,0.29424821,591.76,590.66,0.29268303]
[1743905906325,0.29424821,591.76,590.67,0.29424821]
[1743905906525,0.29424821,591.76,590.68,0.29268303]
[1743905907925,0.98796914,591.77,590.68,0.29268303]
[1743905908120,0.98796914,591.77,590.66,0.29268303]
[1743905908324,0.29424323,591.75,590.67,0.9255248]
[1743905908525,0.29424323,591.75,590.68,0.29268303]
[1743905909029,0.29424323,591.75,590.71,1.26423726]
[1743905909224,0.29424323,591.75,590.72,0.29268303]
[1743905910828,0.29424323,591.75,590.76,1.26423726]
[1743905911023,0.98796914,591.77,590.77,0.2926809]
[1743905912125,0.98796914,591.77,590.76,1.26423726]
[1743905912331,0.29422955,591.76,590.77,0.29268132]
[1743905912525,0.29422955,591.76,590.76,1.26423726]
[1743905912725,0.29422955,591.76,590.77,0.29268123]
[1743905913130,0.29422955,591.76,590.77,0.63122245]
[1743905913430,0.29422955,591.76,590.78,0.29268123]
[1743905913627,0.29422955,591.76,590.81,1.26423726]
[1743905913829,0.29422955,591.76,590.82,0.29268123]
[1743905914129,0.33796914,591.77,590.81,1.26423726]
[1743905914327,0.33796914,591.77,590.82,0.29264109]
[1743905915335,0.29419473,591.76,590.82,0.29264109]
[1743905915927,0.29419473,591.76,590.77,0.33854122]
[1743905916228,0.54,591.75,590.78,0.29264052]
[1743905922736,0.66,591.74,590.78,0.29264052]
[1743905923235,0.66,591.74,590.81,1.26423726]
[1743905923435,0.66,591.74,590.82,0.29264052]
[1743905924138,0.66,591.74,590.81,1.26423726]
[1743905924338,0.66,591.74,590.82,0.29264079]
[1743905924739,0.66,591.74,590.9,1.26423726]
[1743905925038,0.66,591.74,590.91,0.29264079]
[1743905927039,0.66,591.74,590.9,1.26423726]
[1743905927241,0.66,591.74,590.98,1.26423726]
[1743905929241,0.66,591.74,590.77,0.33854122]
[1743905929442,0.66,591.74,590.78,0.29264336]
[1743905931138,0.66,591.74,590.79,0.29264299]
[1743905931337,0.66,591.74,590.78,0.29264299]
[1743905931743,0.66,591.74,590.8,0.29420965]
[1743905932043,0.66,591.74,590.81,0.29264299]
[1743905932343,0.66,591.74,590.82,0.29264299]
[1743905932639,0.66,591.74,590.77,0.33854122]
[1743905932942,0.66,591.74,590.78,0.29264364]
[1743905934547,0.66,591.74,590.79,0.29422706]
[1743905934942,0.66,591.74,590.77,0.33854122]
[1743905935141,0.66,591.74,590.8,0.29265703]
[1743905935344,0.29422706,591.73,590.81,0.29265703]
[1743905935537,0.29422706,591.73,590.78,0.29265703]
[1743905936846,0.29422706,591.73,590.79,0.29422706]
[1743905937045,0.29422706,591.73,590.8,0.29265703]
[1743905937948,0.66,591.74,590.8,0.29265703]
[1743905938245,0.29422706,591.72,590.79,0.29422706]
[1743905938446,0.29422706,591.72,590.8,0.29265703]
[1743905939751,0.29422706,591.72,590.8,1.55689429]
[1743905940052,0.29422706,591.72,590.81,0.29265703]
[1743905940952,0.66,591.74,590.8,1.26423726]
[1743905941146,0.66,591.74,590.81,0.29265576]
[1743905941350,0.29422333,591.71,590.81,0.29265576]
[1743905942154,0.29422333,591.71,590.8,1.55846059]
[1743905942354,0.29422333,591.71,590.81,0.29264729]
[1743905945152,0.493,591.7,590.81,0.29264729]
[1743905947154,0.493,591.7,590.79,0.29264729]
[1743905947360,0.29422955,591.69,590.8,0.29422955]
[1743905947555,0.76622955,591.69,590.81,0.29264729]
[1743905949962,0.472,591.69,590.81,0.29264729]
[1743905950159,0.472,591.69,590.79,0.29264729]
[1743905950363,0.29423204,591.68,590.8,0.58687933]
[1743905950563,0.29423204,591.68,590.81,0.29264729]
[1743905950765,0.29423204,591.68,590.82,0.29268083]
[1743905951063,0.29423204,591.68,590.81,0.29268083]
[1743905951264,0.29423204,591.68,590.82,0.29268083]
[1743905951465,0.29423204,591.68,590.81,0.29268083]
[1743905952964,0.472,591.69,590.81,0.29268083]
[1743905953164,0.472,591.69,590.79,0.29268083]
[1743905953365,0.2942395,591.67,590.8,0.2942395]
[1743905953564,0.2942395,591.67,590.81,0.29268083]
[1743905953863,0.2942395,591.67,590.8,0.2942395]
[1743905954065,0.2942395,591.67,590.81,0.29267397]
[1743905955666,0.2942395,591.67,590.78,0.29267397]
[1743905955966,0.472,591.69,590.78,0.29267397]
[1743905956261,0.29425816,591.66,590.78,0.29267397]
[1743905956466,0.29425816,591.66,590.77,0.33854122]
[1743905956664,0.29425816,591.66,590.78,0.29270433]
[1743905956865,0.29425816,591.66,590.77,0.33854122]
[1743905957867,0.29425816,591.66,590.78,0.29270085]
[1743905958870,0.29425816,591.66,590.77,0.33854122]
[1743905959065,0.472,591.69,590.77,0.33854122]
[1743905959267,0.29426314,591.65,590.77,0.33854122]
[1743905961974,0.472,591.69,590.77,0.33854122]
[1743905962371,0.29426314,591.64,590.77,0.33854122]
[1743905964973,0.753,591.63,590.77,0.33854122]
[1743905965376,1.04724821,591.63,590.77,0.33854122]
[1743905967979,0.753,591.63,590.77,0.33854122]
[1743905968780,0.753,591.63,590.78,0.29264219]
[1743905969576,0.617,591.62,590.78,0.29264219]
[1743905974185,0.617,591.62,590.77,0.33854122]
[1743905974385,0.617,591.62,590.78,0.29263569]
[1743905975785,0.617,591.62,590.77,0.63276579]
[1743905977089,0.617,591.62,590.77,0.33854122]
[1743905977290,0.617,591.62,590.77,0.63276579]
[1743905978589,0.617,591.62,590.78,0.29259696]
[1743905978789,0.617,591.62,590.79,0.33852976]
[1743905980590,0.617,591.62,590.8,0.29259112]
[1743905980790,0.617,591.62,590.81,0.3385183]
[1743905980992,0.617,591.62,590.82,0.29259112]
[1743905981288,0.617,591.62,590.83,0.33850684]
[1743905981488,0.617,591.62,590.84,0.29259112]
[1743905981692,0.617,591.62,590.85,0.33849538]
[1743905981893,0.617,591.62,590.86,0.29259112]
[1743905982093,0.617,591.62,590.87,0.33848393]
[1743905982293,0.617,591.62,590.88,0.29259112]
[1743905982489,0.617,591.62,590.89,0.33847247]
[1743905982695,0.617,591.62,590.9,0.29250392]
[1743905982996,0.617,591.62,590.91,0.33846101]
[1743905983194,0.617,591.62,590.92,0.29250392]
[1743905983494,0.617,591.62,590.93,0.33844956]
[1743905983696,0.617,591.62,590.94,0.29250392]
[1743905983891,0.617,591.62,590.95,0.3384381]
[1743905984393,0.617,591.62,590.96,0.29250706]
[1743905984593,0.577,591.61,590.97,0.33842665]
[1743905984796,0.577,591.61,590.98,0.29250706]
[1743905984997,0.577,591.61,590.99,0.29250706]
[1743905985296,0.577,591.61,591.0,0.29250706]
[1743905985496,0.577,591.61,590.97,0.33842665]
[1743905985497,0.577,591.61,591.01,0.29250706]
[1743905985696,0.577,591.61,591.02,0.29250706]
[1743905985997,0.577,591.61,591.03,0.29251598]
[1743905986292,0.577,591.61,591.04,0.29251598]
[1743905986497,0.577,591.61,591.05,0.29251598]
[1743905986691,0.577,591.61,590.98,0.29251598]
[1743905986890,0.577,591.61,590.99,0.29251598]
[1743905987091,0.577,591.61,591.0,0.29251598]
[1743905987398,0.577,591.61,591.01,0.29251598]
[1743905987593,0.577,591.61,591.02,0.29250972]
[1743905987795,0.577,591.61,590.98,0.29250972]
[1743905987994,0.577,591.61,590.99,0.29250972]
[1743905988196,0.577,591.61,591.0,0.29250972]
[1743905988393,0.577,591.61,590.98,0.29250972]
[1743905988597,0.577,591.61,590.99,0.29250972]
[1743905988794,0.577,591.61,591.03,1.26423726]
[1743905989201,0.577,591.61,591.04,0.29251017]
[1743905990696,0.577,591.61,590.98,0.29251017]
[1743905991002,0.577,591.61,590.99,0.29250972]
[1743905991201,0.577,591.61,590.98,0.29250972]
[1743905991393,0.577,591.61,590.99,0.63092492]
[1743905991597,0.577,591.61,591.0,0.29250972]
[1743905992495,0.577,591.61,591.01,0.33840374]
[1743905992696,0.577,591.61,591.02,0.29250972]
[1743905992918,0.577,591.61,591.03,0.33839229]
[1743905993099,0.577,591.61,591.04,0.29250972]
[1743905993300,0.577,591.61,591.04,0.63089629]
[1743905993496,0.577,591.61,591.05,0.29250972]
[1743905994001,0.577,591.61,591.04,0.33838657]
[1743905994203,0.577,591.61,591.06,0.29249449]
[1743905994502,0.577,591.61,591.07,0.63086388]
[1743905994903,0.577,591.61,591.08,0.63085816]
[1743905995104,0.577,591.61,591.09,0.63085243]
[1743905995408,0.577,591.61,591.1,0.63084671]
[1743905995606,0.577,591.61,591.11,0.29249449]
[1743906001011,0.499,591.6,591.11,0.29249449]
[1743906003414,0.499,591.6,591.1,0.33835222]
[1743906003616,0.499,591.6,591.12,0.29248361]
[1743906003914,0.499,591.6,591.13,0.29248361]
[1743906004115,0.499,591.6,591.11,0.29248361]
[1743906005212,0.499,591.6,591.12,0.29248263]
[1743906005410,0.499,591.6,591.11,0.29248263]
[1743906005615,0.499,591.6,591.12,0.29248263]
[1743906005815,0.499,591.6,591.11,0.29248263]
[1743906008419,0.499,591.6,591.12,0.29247892]
[1743906008621,0.499,591.6,591.11,0.29247892]
[1743906010216,0.499,591.6,591.12,0.29248053]
[1743906010415,0.499,591.6,591.11,0.29248053]
[1743906010615,0.499,591.6,591.12,0.29248053]
[1743906010816,0.499,591.6,591.11,0.29248053]
[1743906011020,0.499,591.6,591.12,1.55671779]
[1743906011220,0.499,591.6,591.13,0.29248053]
[1743906011824,0.527,591.59,591.13,0.29248053]
[1743906013324,0.527,591.59,591.12,1.26423726]
[1743906013525,0.527,591.59,591.23,1.26423726]
[1743906013718,0.527,591.59,591.24,0.29248113]
[1743906014025,0.527,591.59,591.23,1.26423726]
[1743906014226,0.527,591.59,591.25,0.29248174]
[1743906014425,0.527,591.59,591.26,0.29248174]
[1743906014627,0.527,591.59,591.24,0.29248174]
[1743906014826,0.527,591.59,591.25,0.29248174]
[1743906015028,0.527,591.59,591.32,1.26423726]
[1743906017533,0.527,591.59,591.12,1.26423726]
[1743906017828,0.527,591.59,591.13,0.29250482]
[1743906018232,0.527,591.59,591.12,1.26423726]
[1743906018435,0.527,591.59,591.13,0.29250482]
[1743906019933,0.603,591.58,591.13,0.29250482]
[1743906020134,0.603,591.58,591.14,1.26423726]
[1743906020327,0.603,591.58,591.15,0.29250482]
[1743906022436,0.603,591.58,591.12,0.29412386]
[1743906022633,0.603,591.58,591.13,0.29250482]
[1743906023937,0.603,591.58,591.12,0.29412386]
[1743906024131,0.603,591.58,591.14,0.29250758]
[1743906024334,0.603,591.58,591.12,0.29412386]
[1743906024335,0.603,591.58,591.15,0.29250758]
[1743906024630,0.603,591.58,591.16,0.29250748]
[1743906024834,0.603,591.58,591.13,0.29250748]
[1743906025134,0.603,591.58,591.14,0.29250748]
[1743906025335,0.603,591.58,591.11,0.29250748]
[1743906026033,0.603,591.58,591.19,1.26423726]
[1743906026238,0.603,591.58,591.2,0.29250748]
[1743906028039,0.603,591.58,591.19,1.26423726]
[1743906028239,0.603,591.58,591.2,0.29250435]
[1743906029241,0.603,591.58,591.27,1.26423726]
[1743906029536,0.603,591.58,591.28,0.29250435]
[1743906030136,0.603,591.58,591.29,0.29250604]
[1743906030334,0.603,591.58,591.28,0.29250604]
[1743906032041,0.603,591.58,591.24,0.29250604]
[1743906032241,0.603,591.58,591.25,0.29250604]
[1743906032441,0.603,591.58,591.23,1.26423726]
[1743906032741,0.603,591.58,591.24,0.29250182]
[1743906033142,0.603,591.58,591.23,1.26423726]
[1743906033343,0.603,591.58,591.24,0.29250201]
[1743906033639,0.603,591.58,591.34,1.26423726]
[1743906034043,0.527,591.59,591.35,0.29249903]
[1743906035043,0.527,591.59,591.36,0.29249895]
[1743906035243,0.527,591.59,591.35,0.29249895]
[1743906036440,0.527,591.59,591.28,0.29249895]
[1743906036745,0.527,591.59,591.29,0.29250077]
[1743906036945,0.527,591.59,591.27,1.26423726]
[1743906038747,0.527,591.59,591.1,0.33835222]
[1743906038947,0.527,591.59,591.11,0.29254135]
[1743906042046,0.527,591.59,591.1,0.33835222]
[1743906042250,0.527,591.59,591.11,0.29252615]
[1743906048953,0.527,591.59,591.13,1.26423726]
[1743906049154,0.527,591.59,591.14,0.29252615]
[1743906050152,0.527,591.59,591.13,1.26423726]
[1743906050352,0.527,591.59,591.14,0.29253078]
[1743906050553,0.527,591.59,591.13,1.26423726]
[1743906050748,0.527,591.59,591.14,0.29253091]
[1743906051753,0.527,591.59,591.11,0.29253091]
[1743906051955,0.527,591.59,591.12,0.29253091]
[1743906052155,0.527,591.59,591.11,0.29253091]
[1743906052556,0.499,591.58,591.11,0.29253091]
[1743906054058,0.499,591.58,591.1,1.60258948]
[1743906054260,0.499,591.58,591.11,1.55676204]
[1743906054460,0.499,591.58,591.12,0.29252478]
[1743906055663,0.499,591.58,591.11,1.26423726]
[1743906055860,0.499,591.58,591.12,0.29252479]
[1743906056057,0.499,591.58,591.21,1.26423726]
[1743906056258,0.499,591.58,591.22,0.29252479]
[1743906057266,0.499,591.58,591.21,1.26423726]
[1743906057466,0.499,591.58,591.22,0.29252449]
[1743906058168,0.499,591.58,591.19,0.29252449]
[1743906058366,0.499,591.58,591.2,0.29252449]
[1743906058662,0.499,591.58,591.21,0.29252449]
[1743906058866,0.499,591.58,591.19,0.29252449]
[1743906059166,0.499,591.58,591.2,0.29252449]
[1743906059366,0.499,591.58,591.21,0.29252449]
[1743906059667,0.499,591.58,591.22,0.29252449]
[1743906059867,0.499,591.58,591.18,1.26423726]
[1743906059868,0.499,591.58,591.2,1.26423726]
[1743906060067,0.499,591.58,591.21,0.29252449]
[1743906060767,0.499,591.58,591.2,1.26423726]
[1743906060981,0.499,591.58,591.21,0.29252587]
[1743906061967,0.499,591.58,591.25,1.26423726]
[1743906062267,0.499,591.58,591.26,0.29252587]
[1743906066870,0.499,591.58,591.17,1.26423726]
[1743906066871,0.499,591.58,591.18,0.29252587]
[1743906067165,0.499,591.58,591.19,0.29250712]
[1743906067366,0.499,591.58,591.18,0.29250712]
[1743906067666,0.499,591.58,591.17,1.26423726]
[1743906067870,0.499,591.58,591.18,0.29250752]
[1743906069665,0.499,591.58,591.19,0.29250752]
[1743906069866,0.499,591.58,591.13,0.29250752]
[1743906070167,0.499,591.58,591.14,0.29250752]
[1743906070367,0.499,591.58,591.12,0.2941164]
[1743906070672,0.499,591.58,591.13,0.29250757]
[1743906071969,0.499,591.58,591.12,0.2941164]
[1743906072174,0.499,591.58,591.14,0.29251038]
[1743906072372,0.499,591.58,591.15,0.29251038]
[1743906072573,0.499,591.58,591.13,0.29251038]
[1743906072771,0.499,591.58,591.16,0.29251038]
[1743906072980,0.499,591.58,591.14,0.29251038]
[1743906073173,0.499,591.58,591.15,0.29251038]
[1743906073372,0.499,591.58,591.13,0.2941164]
[1743906073573,0.499,591.58,591.14,0.29251038]
[1743906077073,0.499,591.58,591.13,0.2941164]
[1743906077274,0.499,591.58,591.15,0.29250687]
[1743906077473,0.499,591.58,591.16,0.29250687]
[1743906077974,0.499,591.58,591.17,0.29250687]
[1743906078270,0.499,591.58,591.18,0.29250687]
[1743906078476,0.499,591.58,591.19,0.29250687]
[1743906078676,0.499,591.58,591.14,0.29250687]
[1743906078875,0.499,591.58,591.13,0.2941164]
[1743906079071,0.499,591.58,591.14,0.29250684]
[1743906079276,0.499,591.58,591.11,0.29250684]
[1743906079481,0.499,591.58,591.13,0.29411392]
[1743906079679,0.499,591.58,591.14,0.29250684]
[1743906080179,0.499,591.58,591.15,1.26423726]
[1743906080381,0.499,591.58,591.16,0.29250684]
[1743906082181,0.499,591.58,591.15,1.26423726]
[1743906082378,0.499,591.58,591.17,0.29248626]
[1743906082579,0.499,591.58,591.29,1.26423726]
[1743906082880,0.461,591.66,591.3,0.29248626]
[1743906084782,0.461,591.66,591.23,0.29248626]
[1743906085088,0.461,591.66,591.24,0.29248626]
[1743906085286,0.461,591.66,591.23,0.29248626]
[1743906085487,0.544,591.65,591.24,0.29248626]
[1743906085784,0.544,591.65,591.25,0.2924867]
[1743906085987,0.544,591.65,591.23,0.2924867]
[1743906089090,0.544,591.65,591.22,1.26423726]
[1743906089991,0.544,591.65,591.14,1.26423726]
[1743906091892,0.544,591.65,591.13,0.29410398]
[1743906094091,0.544,591.65,591.1,0.33835222]
[1743906094291,0.544,591.65,591.13,0.29410895]
[1743906097102,0.544,591.65,591.1,0.33835222]
[1743906098000,0.653,591.64,591.1,0.33835222]
[1743906099101,0.653,591.64,591.11,0.29249678]
[1743906099497,0.653,591.64,591.1,0.33835222]
[1743906099703,0.653,591.64,591.11,0.29249721]
[1743906100300,0.653,591.64,591.12,0.29411143]
[1743906100502,0.653,591.64,591.13,0.29249721]
[1743906102799,0.653,591.64,591.12,0.29411143]
[1743906103003,0.653,591.64,591.13,0.29249616]
[1743906103305,0.653,591.64,591.11,0.29249616]
[1743906103604,0.653,591.64,591.12,0.29249613]
[1743906103805,0.653,591.64,591.11,0.29249613]
[1743906104000,0.653,591.64,591.12,0.29249613]
[1743906104306,0.653,591.64,591.13,0.29249613]
[1743906104606,0.653,591.64,591.1,0.33835222]
[1743906104906,0.653,591.64,591.11,0.29249646]
[1743906105506,0.653,591.64,591.12,0.29410895]
[1743906105702,0.653,591.64,591.13,0.29249646]
[1743906106206,0.653,591.64,591.11,0.29249646]
[1743906106507,0.653,591.64,591.12,0.29249646]
[1743906106705,0.653,591.64,591.11,0.29249646]
[1743906106908,0.653,591.64,591.12,0.29249646]
[1743906107107,0.653,591.64,591.18,1.26423726]
[1743906107305,0.653,591.64,591.19,0.29249646]
[1743906107910,0.653,591.64,591.18,1.26423726]
[1743906108107,0.653,591.64,591.2,0.29249596]
[1743906108303,0.653,591.64,591.21,0.29249596]
[1743906108610,0.653,591.64,591.18,1.26423726]
[1743906108906,0.653,591.64,591.19,0.29249706]
[1743906109309,0.653,591.64,591.27,1.26423726]
[1743906109508,0.653,591.64,591.28,0.29249706]
[1743906109709,0.653,591.64,591.27,1.26423726]
[1743906109908,0.653,591.64,591.28,0.29249555]
[1743906112211,0.653,591.64,591.28,1.55673281]
[1743906112407,0.653,591.64,591.29,0.29249555]
[1743906113810,0.653,591.64,591.28,1.26423726]
[1743906114011,0.653,591.64,591.29,0.29249533]
[1743906115010,0.653,591.64,591.3,0.29249532]
[1743906115215,0.653,591.64,591.29,0.29249532]
[1743906115414,0.653,591.64,591.3,0.29249532]
[1743906115617,0.653,591.64,591.29,0.29249532]
[1743906115915,0.653,591.64,591.3,0.29249532]
[1743906116214,0.653,591.64,591.31,0.29249532]
[1743906116417,0.653,591.64,591.32,0.29249532]
[1743906116615,0.653,591.64,591.29,0.29249532]
[1743906116812,0.653,591.64,591.3,0.29249532]
[1743906118817,0.653,591.64,591.4,1.26423726]
[1743906119017,0.653,591.64,591.41,0.29249849]
[1743906124714,0.653,591.64,591.4,1.26423726]
[1743906124918,0.653,591.64,591.41,0.29249879]
[1743906125821,0.653,591.64,591.37,0.29249879]
[1743906126120,0.653,591.64,591.38,0.29249879]
[1743906126319,0.653,591.64,591.37,0.29249879]
[1743906127825,0.653,591.64,591.37,1.55673605]
[1743906128022,0.653,591.64,591.37,1.26423726]
[1743906128215,0.653,591.64,591.38,0.29248993]
[1743906128721,0.653,591.64,591.37,1.26423726]
[1743906129018,0.653,591.64,591.38,0.29248962]
[1743906130625,0.653,591.64,591.31,0.29248962]
[1743906130824,0.653,591.64,591.32,0.29248962]
[1743906131124,0.653,591.64,591.33,0.29248962]
[1743906131327,0.653,591.64,591.31,0.29248962]
[1743906134226,0.653,591.64,591.32,1.26423726]
[1743906134530,0.653,591.64,591.33,0.29248962]
[1743906136027,1.51618276,592.67,591.33,0.29248962]
[1743906136328,0.29407912,592.05,591.33,0.29248962]
[1743906136532,0.29407912,592.05,591.33,1.55672688]
[1743906136732,0.3374673,592.65,591.34,0.29248962]
[1743906136932,0.31053244,592.64,591.34,0.29248962]
[1743906137131,0.33748439,592.62,591.34,0.29248962]
[1743906137327,0.31053244,592.61,591.34,0.29248962]
[1743906137532,0.33750147,592.59,591.34,0.29248962]
[1743906137740,0.31053244,592.58,591.34,0.29248962]
[1743906138041,0.33751856,592.56,591.34,0.29248962]
[1743906138240,0.31053244,592.55,591.34,0.29248962]
[1743906138441,0.33753565,592.53,591.33,1.26423726]
[1743906138740,0.3105355,592.52,591.34,0.29249225]
[1743906138939,0.33755274,592.5,591.34,0.29249225]
[1743906139140,0.3105355,592.49,591.34,0.29249225]
[1743906139337,0.60450408,592.49,591.34,0.29249225]
[1743906139542,0.3105355,592.48,591.34,0.29249225]
[1743906139741,1.0355355,592.48,591.4,1.26423726]
[1743906139937,0.3105355,592.47,591.41,0.29249225]
[1743906140542,0.33757553,592.46,591.41,0.29249225]
[1743906140743,0.3105355,592.45,591.41,0.29249225]
[1743906141741,0.33758692,592.44,591.41,0.29249225]
[1743906141938,0.3105355,592.43,591.41,0.29249225]
[1743906142242,0.64813789,592.42,591.42,0.29249628]
[1743906142441,0.64814359,592.41,591.28,0.29249628]
[1743906142641,0.64814929,592.4,591.28,0.29249628]
[1743906142836,0.33761542,592.39,591.28,0.29249628]
[1743906143038,0.31053957,592.38,591.28,0.29249628]
[1743906143239,0.33762682,592.37,591.28,0.29249628]
[1743906143439,0.31053957,592.36,591.28,0.29249628]
[1743906143640,0.33763822,592.35,591.28,0.29249628]
[1743906146446,0.29398099,592.34,591.28,1.55673354]
[1743906146648,0.33764962,592.33,591.29,0.29249628]
[1743906148346,0.29399714,592.32,591.29,0.29249628]
[1743906148542,0.33766102,592.31,591.29,0.29249628]
[1743906148742,0.33766102,592.31,591.29,1.55673354]
[1743906148941,0.33766102,592.31,591.3,0.29249628]
[1743906151049,0.31052858,592.3,591.31,0.29248543]
[1743906151347,0.33767242,592.29,591.32,0.29248543]
[1743906151546,0.33767242,592.29,591.3,0.29248543]
[1743906152046,0.33767242,592.29,591.36,1.26423726]
[1743906152241,0.33767242,592.29,591.37,0.29248543]
[1743906154449,0.29398969,592.28,591.37,0.29248543]
[1743906154748,0.29398969,592.28,591.37,1.55672269]
[1743906155047,0.29398969,592.28,591.38,0.29248543]
[1743906156951,0.617,592.27,591.38,0.29248543]
[1743906157445,0.29399217,592.26,591.37,0.29248543]
[1743906159347,0.533,592.25,591.37,0.29248543]
[1743906159649,0.533,592.25,591.36,1.26423726]
[1743906159854,0.533,592.25,591.37,0.2924811]
[1743906160552,0.29399465,592.24,591.37,0.2924811]
[1743906162655,0.29399465,592.24,591.36,1.26423726]
[1743906162855,0.29399465,592.24,591.37,0.29248137]
[1743906163055,0.533,592.25,591.37,0.29248137]
[1743906163350,0.29399589,592.23,591.37,0.29248137]
[1743906164456,0.29399589,592.23,591.32,0.29248137]
[1743906166059,0.533,592.25,591.32,0.29248137]
[1743906166359,0.2940021,592.22,591.32,0.29248137]
[1743906166754,0.2940021,592.22,591.3,1.26423726]
[1743906166955,0.2940021,592.22,591.31,0.29248522]
[1743906168764,0.2940021,592.22,591.31,1.55672248]
[1743906168955,0.2940021,592.22,591.32,0.29248522]
[1743906169155,0.533,592.25,591.32,0.29248522]
[1743906169355,0.2940021,592.21,591.32,0.29248522]
[1743906171064,0.2940021,592.21,591.33,0.2924814]
[1743906171263,0.2940021,592.21,591.32,0.2924814]
[1743906171459,0.2940021,592.21,591.33,0.2924814]
[1743906171659,0.2940021,592.21,591.32,0.2924814]
[1743906171864,0.2940021,592.21,591.33,0.2924814]
[1743906172166,0.533,592.25,591.34,0.29247853]
[1743906172365,0.29399217,592.2,591.32,0.29247853]
[1743906172660,0.29399217,592.2,591.33,0.29247853]
[1743906172860,0.29399217,592.2,591.31,1.26423726]
[1743906172861,0.29399217,592.2,591.32,1.55671579]
[1743906173060,0.29399217,592.2,591.33,0.29247853]
[1743906175068,0.533,592.25,591.33,0.29247853]
[1743906175467,0.29399093,592.19,591.33,0.29247853]
[1743906175661,0.29399093,592.19,591.38,1.26423726]
[1743906175863,0.29399093,592.19,591.39,0.29247853]
[1743906177265,0.29399093,592.19,591.38,1.26423726]
[1743906180267,0.29399093,592.19,591.22,0.29399093]
[1743906180461,0.29399093,592.19,591.23,0.29243146]
[1743906181060,0.533,592.25,591.23,0.29243146]
[1743906181267,0.533,592.25,591.11,0.29243146]
[1743906181569,0.29400086,592.18,591.22,0.29400086]
[1743906181763,0.617,592.27,591.23,0.29243146]
[1743906182066,0.617,592.27,591.24,0.29243146]
[1743906182266,0.617,592.27,591.13,0.29243146]
[1743906182480,0.617,592.27,591.14,0.33832932]
[1743906182666,0.617,592.27,591.15,0.29243146]
[1743906182867,0.617,592.27,591.16,0.33831788]
[1743906183067,0.29399465,592.26,591.16,0.33831788]
[1743906183268,0.29399465,592.26,591.17,0.29243238]
[1743906183470,0.29399465,592.26,591.18,0.33830643]
[1743906183780,0.29399465,592.26,591.19,0.29243238]
[1743906184170,0.33767242,592.29,591.19,0.29243238]
[1743906184470,0.29398596,592.25,591.19,0.29243238]
[1743906185371,0.485,592.24,591.19,0.29243238]
[1743906186673,0.472,592.23,591.19,0.29243238]
[1743906187371,0.29400459,592.22,591.19,0.29243238]
[1743906188772,0.29400459,592.22,591.27,1.26423726]
[1743906188973,0.29400459,592.22,591.28,0.29243238]
[1743906190078,0.472,592.23,591.28,0.29243238]
[1743906190374,0.29399465,592.21,591.28,0.29243238]
[1743906191684,0.29399465,592.21,591.27,0.29243238]
[1743906193077,0.472,592.23,591.27,0.29243238]
[1743906193377,0.29399589,592.2,591.35,1.26423726]
[1743906193576,0.29399589,592.2,591.36,0.29243238]
[1743906195582,0.29399589,592.2,591.35,1.26423726]
[1743906195779,0.29399589,592.2,591.36,0.29244099]
[1743906196082,0.472,592.23,591.36,0.29244099]